[Event "CAT-chT Honor Division 2019"]
[Site "Catalonia"]
[Date "2019.02.02"]
[Round "3"]
[White "Fluvia Poyatos, Joan"]
[Black "Alonso Bouza, Julio Javier"]
[Result "1-0"]
[ECO "A05"]
[WhiteElo "2475"]
[BlackElo "2398"]
[Annotator "RC"]
[PlyCount "129"]
[EventDate "2019.01.16"]
[EventType "team-tourn"]
[EventCountry "ESP"]
[SourceTitle "playchess.com"]
[Source "ChessBase"]
[SourceQuality "1"]
[WhiteTeam "Sant Josep Badalona"]
[BlackTeam "Cerdanyola"]
[TimeControl "5400+30"]

1. Nf3 {[%emt 0:00:00]} Nf6 {[%emt 0:00:27]} 2. g3 {[%emt 0:00:00]} g6 {[%emt 0:00:06]} 3. Bg2 {[%emt 0:00:00]} Bg7 {[%emt 0:00:17]} 4. O-O {[%emt 0:00:00]} O-O {[%emt 0:00:17]} 5. d4 {[%emt 0:00:36]} d6 {[%emt 0:00:10]} 6. a4 {[%emt 0:02:33]} a5 {[%emt 0:00:53]} 7. Nbd2 {[%emt 0:05:29]} Nc6 {[%emt 0:04:45]} 8. c3 {[%emt 0:04:22]} e5 {[%emt 0:03:12]} 9. dxe5 {[%emt 0:01:11]} dxe5 {[%emt 0:00:10]} 10. Qc2 {[%emt 0:04:07]} h6 {[%emt 0:08:34]} 11. b3 {[%emt 0:09:31]} e4 {[%emt 0:09:30]} 12. Nd4 {[%emt 0:06:45]} Nxd4 {[%emt 0:09:11]} 13. cxd4 {[%emt 0:00:07]} Qxd4 {[%emt 0:14:27]} 14. Bb2 {[%emt 0:01:29]} Qb6 {[%emt 0:01:35]} 15. Nxe4 {[%emt 0:08:58]} Nxe4 {[%emt 0:00:26]} 16. Bxe4 {[%emt 0:00:10]} Bxb2 {[%emt 0:01:34]} 17. Qxb2 {[%emt 0:00:08]} Bh3 {[%emt 0:07:01]} 18. Rfc1 {[%emt 0:06:02]} Rad8 {[%emt 0:02:02]} 19. Qc3 {[%emt 0:02:32]} Rfe8 {[%emt 0:02:38]} 20. Bf3 {[%emt 0:03:22]} Be6 {[%emt 0:00:31]} 21. Rab1 {[%emt 0:01:17]} c6 {[%emt 0:05:45]} 22. b4 {[%emt 0:01:36]} axb4 {[%emt 0:01:18]} 23. Rxb4 {[%emt 0:00:10]} Qa7 {[%emt 0:03:00]} 24. Rcb1 {[%emt 0:02:15]} Qa5 {[%emt 0:02:47]} 25. Qc1 {[%emt 0:04:11]} Bf5 {[%emt 0:15:23]} 26. e4 {[%emt 0:06:31]} Bc8 {[%emt 0:02:10]} 27. Qxh6 {[%emt 0:01:08]} c5 {[%emt 0:01:44]} 28. Rb5 {[%emt 0:06:11]} Qxa4 {[%emt 0:00:06]} 29. Rxc5 {[%emt 0:00:29]} Qa3 {[%emt 0:00:08]} 30. Qe3 {[%emt 0:03:23]} Qxe3 {[%emt 0:01:58]} 31. fxe3 {[%emt 0:00:04]} Rd3 {[%emt 0:00:29]} 32. Re1 {[%emt 0:04:03]} Rb3 {[%emt 0:02:09]} 33. Kf2 {[%emt 0:01:15]} b6 {[%emt 0:01:05]} 34. Rc7 {[%emt 0:02:03]} Ba6 {[%emt 0:00:28]} 35. Rec1 {[%emt 0:03:06]} Rb2+ {[%emt 0:00:36]} 36. R1c2 {[%emt 0:00:29]} Rxc2+ {[%emt 0:00:07]} 37. Rxc2 {[%emt 0:00:04]} Bd3 {[%emt 0:00:11]} 38. Rb2 {[%emt 0:00:21]} Bxe4 {[%emt 0:00:47]} 39. Rxb6 {[%emt 0:00:08]} Bxf3 {[%emt 0:00:25]} 40. Kxf3 {[%emt 0:00:03]} Ra8 {[%emt 0:00:24]} 41. h4 {[%emt 0:01:05]} Ra1 {[%emt 0:00:35]} 42. Rb2 {[%emt 0:00:28]} Rf1+ {[%emt 0:00:41]} 43. Rf2 {[%emt 0:00:10]} Ra1 {[%emt 0:00:17]} 44. Kg2 {[%emt 0:01:29]} Re1 {[%emt 0:00:40]} 45. Kf3 {[%emt 0:01:27]} Ra1 {[%emt 0:00:05]} 46. Re2 {[%emt 0:00:09]} Rf1+ {[%emt 0:00:06]} 47. Kg2 {[%emt 0:00:04]} Ra1 {[%emt 0:00:15]} 48. g4 {[%emt 0:00:05]} Kg7 {[%emt 0:00:31]} 49. Rf2 {[%emt 0:00:51]} Re1 {[%emt 0:00:11]} 50. Rf3 {[%emt 0:00:07]} Ra1 {[%emt 0:00:14]} 51. Rh3 {[%emt 0:00:17]} Re1 {[%emt 0:02:04]} 52. Kf2 {[%emt 0:00:16]} Ra1 {[%emt 0:00:07]} 53. Kg2 {[%emt 0:02:52]} Re1 {[%emt 0:00:15]} 54. h5 {[%emt 0:00:20]} gxh5 {[%emt 0:00:49]} 55. gxh5 {[%emt 0:00:03]} Ra1 {[%emt 0:00:50]} 56. Kf3 {[%emt 0:00:22]} Rf1+ {[%emt 0:00:44]} 57. Ke4 {[%emt 0:00:22]} f5+ {[%emt 0:00:44]} 58. Ke5 {[%emt 0:01:09]} Kh6 {[%emt 0:00:12]} 59. Rh4 {[%emt 0:01:04]} Rf3 {[%emt 0:00:32]} 60. Kd4 {[%emt 0:00:06]} Kg5 {[%emt 0:00:32]} 61. h6 {[%emt 0:00:58]} Kxh4 {[%emt 0:00:25]} 62. h7 {[%emt 0:00:05]} Rh3 {[%emt 0:00:38]} 63. h8=Q+ {[%emt 0:00:11]} Kg4 {[%emt 0:00:18]} 64. Qg7+ {[%emt 0:00:18]} Kf3 {[%emt 0:00:25]} 65. Qg5 {[%emt 0:00:14]} 1-0

[Event "CAT-chT Honor Division 2019"]
[Site "Catalonia"]
[Date "2019.02.02"]
[Round "3"]
[White "Perez Mitjans, Orelvis"]
[Black "Guerra Mendez, Jose Angel"]
[Result "1/2-1/2"]
[ECO "C84"]
[WhiteElo "2377"]
[BlackElo "2531"]
[Annotator "RC"]
[PlyCount "48"]
[EventDate "2019.01.16"]
[EventType "team-tourn"]
[EventCountry "ESP"]
[SourceTitle "playchess.com"]
[Source "ChessBase"]
[SourceQuality "1"]
[WhiteTeam "Sant Josep Badalona"]
[BlackTeam "Cerdanyola"]
[TimeControl "5400+30"]

1. e4 {[%emt 0:04:30]} e5 {[%emt 0:00:06]} 2. Nf3 {[%emt 0:00:07]} Nc6 {[%emt 0:00:09]} 3. Bb5 {[%emt 0:00:06]} a6 {[%emt 0:00:07]} 4. Ba4 {[%emt 0:00:05]} Nf6 {[%emt 0:00:38]} 5. O-O {[%emt 0:00:13]} Be7 {[%emt 0:00:08]} 6. d3 {[%emt 0:00:13]} b5 {[%emt 0:01:07]} 7. Bb3 {[%emt 0:00:05]} d6 {[%emt 0:00:29]} 8. a3 {[%emt 0:00:20]} O-O {[%emt 0:00:44]} 9. Nc3 {[%emt 0:00:17]} Bg4 {[%emt 0:00:35]} 10. Be3 {[%emt 0:00:29]} Nd4 {[%emt 0:00:29]} 11. Bxd4 {[%emt 0:00:43]} exd4 {[%emt 0:00:23]} 12. Nd5 {[%emt 0:00:09]} c5 {[%emt 0:00:41]} 13. a4 {[%emt 0:10:42]} Be6 {[%emt 0:00:49]} 14. Nxe7+ {[%emt 0:12:57]} Qxe7 {[%emt 0:00:09]} 15. Bxe6 {[%emt 0:00:17]} Qxe6 {[%emt 0:04:07]} 16. Qd2 {[%emt 0:03:45]} Qd7 {[%emt 0:13:53]} 17. axb5 {[%emt 0:00:20]} axb5 {[%emt 0:00:27]} 18. Ra5 {[%emt 0:00:39]} b4 {[%emt 0:25:42]} 19. Rfa1 {[%emt 0:01:31]} Qb7 {[%emt 0:01:40]} 20. b3 {[%emt 0:04:15]} Rxa5 {[%emt 0:00:39]} 21. Rxa5 {[%emt 0:00:05]} Ra8 {[%emt 0:00:09]} 22. Rxa8+ {[%emt 0:00:35]} Qxa8 {[%emt 0:00:04]} 23. h3 {[%emt 0:00:27]} Ne8 {[%emt 0:19:47]} 24. e5 {[%emt 0:18:57]} Qd8 1/2-1/2

[Event "CAT-chT Honor Division 2019"]
[Site "Catalonia"]
[Date "2019.02.02"]
[Round "3"]
[White "Alonso Garcia, Rene Marcial"]
[Black "Panelo, Marcelo"]
[Result "1/2-1/2"]
[ECO "E11"]
[WhiteElo "2348"]
[BlackElo "2366"]
[Annotator "NA RC"]
[PlyCount "29"]
[EventDate "2019.01.16"]
[EventType "team-tourn"]
[EventCountry "ESP"]
[SourceTitle "playchess.com"]
[Source "ChessBase"]
[SourceQuality "1"]
[WhiteTeam "Cerdanyola"]
[BlackTeam "Sant Josep Badalona"]
[TimeControl "5400+30"]

1. d4 {[%emt 0:00:00]} Nf6 {[%emt 0:00:00]} 2. Nf3 {[%emt 0:00:00]} e6 {[%emt 0:01:42]} 3. c4 {[%emt 0:00:00]} Bb4+ {[%emt 0:00:32]} 4. Nbd2 {[%emt 0:00:00]} O-O {[%emt 0:02:50]} 5. a3 {[%emt 0:00:14]} Be7 {[%emt 0:00:09]} 6. e4 {[%emt 0:00:05]} d6 {[%emt 0:00:23]} 7. Be2 {[%emt 0:00:06]} c5 {[%emt 0:02:03]} 8. d5 e5 {[%emt 0:04:45]} 9. Qc2 {[%emt 0:08:59]} g6 {[%emt 0:07:40]} 10. Nf1 {[%emt 0:10:00]} Nh5 {[%emt 0:03:51]} 11. Bh6 {[%emt 0:00:17]} Re8 {[%emt 0:03:42]} 12. g3 {[%emt 0:00:22]} f5 {[%emt 0:08:39]} 13. N3d2 {[%emt 0:08:27]} Bg5 {[%emt 0:11:00]} 14. Bxg5 {[%emt 0:01:07]} Qxg5 15. h4 {[%emt 0:09:14]} 1/2-1/2

[Event "CAT-chT Honor Division 2019"]
[Site "Catalonia"]
[Date "2019.02.02"]
[Round "3"]
[White "Bofill Mas, Alejandro"]
[Black "Fernandez Diaz, Cristian"]
[Result "0-1"]
[ECO "A20"]
[WhiteElo "2324"]
[BlackElo "2224"]
[Annotator "NA RC"]
[PlyCount "88"]
[EventDate "2019.01.16"]
[EventType "team-tourn"]
[EventCountry "ESP"]
[SourceTitle "playchess.com"]
[Source "ChessBase"]
[SourceQuality "1"]
[WhiteTeam "Colon Sabadell"]
[BlackTeam "Mollet"]
[TimeControl "5400+30"]

1. c4 e5 2. g3 Nf6 3. Bg2 c6 4. d4 Bb4+ 5. Bd2 Bxd2+ 6. Qxd2 exd4 7. Qxd4 d5 8. cxd5 cxd5 9. Nf3 Nc6 10. Qa4 Qb6 11. Nbd2 O-O 12. O-O Bf5 13. Qb3 Qa6 14. e3 Rad8 15. Rfd1 Ne4 16. Bf1 Qa5 17. Qxb7 Rc8 18. Nb3 Qd8 19. Nfd4 Qf6 20. f3 Nd6 21. Qa6 Ne5 22. Qe2 Nec4 23. Qf2 Bg6 24. Rac1 Rfe8 25. Rc3 a5 26. Bxc4 Nxc4 27. Rdc1 Rb8 28. Rxc4 dxc4 29. Rxc4 Qa6 30. Rc3 Rec8 31. Qd2 a4 32. Na5 Rxc3 33. Qxc3 a3 34. b4 h5 35. b5 Qd6 36. Nac6 Rb6 37. e4 f6 38. Kg2 Bf7 39. Nf5 Qd7 40. Qc5 Qd2+ 41. Kh3 Qe2 42. Nh6+ Kh7 43. Nxf7 Qf1+ 44. Kh4 Rxb5 0-1

[Event "CAT-chT Honor Division 2019"]
[Site "Catalonia"]
[Date "2019.02.02"]
[Round "3"]
[White "Bru Rullo, Llatzer"]
[Black "Gutierrez Clares, Joaquim"]
[Result "1/2-1/2"]
[ECO "A40"]
[WhiteElo "2298"]
[BlackElo "2250"]
[Annotator "NA RC"]
[PlyCount "23"]
[EventDate "2019.01.16"]
[EventType "team-tourn"]
[EventCountry "ESP"]
[SourceTitle "playchess.com"]
[Source "ChessBase"]
[SourceQuality "1"]
[WhiteTeam "Cerdanyola"]
[BlackTeam "Sant Josep Badalona"]
[TimeControl "5400+30"]

1. d4 {[%emt 0:00:28]} Nf6 {[%emt 0:02:33]} 2. c4 {[%emt 0:03:08]} g6 {[%emt 0:00:15]} 3. Nc3 {[%emt 0:00:02]} Bg7 {[%emt 0:00:11]} 4. e4 {[%emt 0:00:01]} d6 {[%emt 0:00:10]} 5. Nf3 {[%emt 0:00:01]} O-O {[%emt 0:00:14]} 6. h3 {[%emt 0:00:00]} Na6 {[%emt 0:04:47]} 7. Be3 {[%emt 0:00:00]} e5 {[%emt 0:01:03]} 8. d5 {[%emt 0:00:00]} Nc5 {[%emt 0:02:16]} 9. Nd2 {[%emt 0:00:18]} a5 {[%emt 0:00:16]} 10. g4 {[%emt 0:02:24]} Nfd7 {[%emt 0:11:29]} 11. Rg1 {[%emt 0:07:03]} c6 12. a3 1/2-1/2

[Event "CAT-chT Honor Division 2019"]
[Site "Catalonia"]
[Date "2019.02.02"]
[Round "3"]
[White "Garcia Ramos, Daniel"]
[Black "Montilla Carrillo, Esteban"]
[Result "1-0"]
[ECO "C54"]
[WhiteElo "2282"]
[BlackElo "2177"]
[Annotator "NA RC"]
[PlyCount "93"]
[EventDate "2019.01.16"]
[EventType "team-tourn"]
[EventCountry "ESP"]
[SourceTitle "playchess.com"]
[Source "ChessBase"]
[SourceQuality "1"]
[WhiteTeam "Colon Sabadell"]
[BlackTeam "Mollet"]
[TimeControl "5400+30"]

1. e4 e5 2. Nf3 Nc6 3. Bc4 Bc5 4. c3 Nf6 5. d4 exd4 6. e5 d5 7. Bb5 Ne4 8. cxd4 Bb6 9. Nc3 O-O 10. Be3 Bg4 11. h3 Bh5 12. O-O f5 13. exf6 Nxc3 14. bxc3 Qxf6 15. Be2 h6 16. a4 Rad8 17. Re1 Bxf3 18. Bxf3 Na5 19. Qd3 c6 20. Ra2 Bc7 21. Bd1 Rde8 22. Rae2 Re6 23. Bc2 Rfe8 24. Bc1 Rxe2 25. Rxe2 Rxe2 26. Qxe2 Kf8 27. Qg4 Bd6 28. g3 Ke7 29. Kg2 Kd8 30. h4 Nc4 31. Bd3 b5 32. Qh5 Qe6 33. axb5 cxb5 34. Bf5 Qf6 35. Bg4 Nb6 36. Bf3 Qe6 37. Bd2 Bf8 38. Be2 Nc4 39. Bf4 g6 40. Qf3 Bg7 41. Bd3 Ke7 42. Bc1 a5 43. Qf4 b4 44. Qc7+ Kf6 45. Bg5+ hxg5 46. hxg5+ Kxg5 47. Qf4+ 1-0

[Event "CAT-chT Honor Division 2019"]
[Site "Catalonia"]
[Date "2019.02.02"]
[Round "3"]
[White "Castrillon Gomez, Melissa"]
[Black "Ortega Serra, Marc"]
[Result "1-0"]
[ECO "A46"]
[WhiteElo "2231"]
[BlackElo "2352"]
[Annotator "NA RC"]
[PlyCount "141"]
[EventDate "2019.01.16"]
[EventType "team-tourn"]
[EventCountry "ESP"]
[SourceTitle "playchess.com"]
[Source "ChessBase"]
[SourceQuality "1"]
[WhiteTeam "Sant Josep Badalona"]
[BlackTeam "Cerdanyola"]
[TimeControl "5400+30"]

1. d4 {[%emt 0:00:00]} Nf6 {[%emt 0:00:20]} 2. Nf3 {[%emt 0:00:00]} d5 {[%emt 0:00:16]} 3. c4 {[%emt 0:00:27]} e6 {[%emt 0:00:09]} 4. g3 {[%emt 0:01:06]} Be7 {[%emt 0:00:08]} 5. Bg2 {[%emt 0:00:09]} O-O {[%emt 0:00:07]} 6. O-O {[%emt 0:01:07]} dxc4 {[%emt 0:00:07]} 7. Qc2 {[%emt 0:04:56]} a6 {[%emt 0:00:26]} 8. Qxc4 {[%emt 0:02:48]} b5 {[%emt 0:00:16]} 9. Qc2 {[%emt 0:00:11]} Bb7 {[%emt 0:00:11]} 10. Bf4 {[%emt 0:01:42]} Nc6 {[%emt 0:04:07]} 11. Rd1 {[%emt 0:17:57]} Nb4 {[%emt 0:04:46]} 12. Qc1 {[%emt 0:01:34]} Qc8 {[%emt 0:01:18]} 13. Nbd2 {[%emt 0:04:55]} Nfd5 {[%emt 0:03:58]} 14. Ne4 {[%emt 0:11:21]} Nxf4 {[%emt 0:02:44]} 15. Qxf4 {[%emt 0:01:59]} Nd5 {[%emt 0:00:50]} 16. Qc1 {[%emt 0:03:21]} Nf6 {[%emt 0:04:15]} 17. Nc5 {[%emt 0:01:14]} Bd5 {[%emt 0:02:35]} 18. Qc2 {[%emt 0:05:50]} Bxc5 {[%emt 0:01:09]} 19. Qxc5 {[%emt 0:00:51]} Qb7 {[%emt 0:00:08]} 20. Ne1 {[%emt 0:05:10]} Rfd8 {[%emt 0:15:21]} 21. Rac1 {[%emt 0:07:42]} Bxg2 {[%emt 0:01:19]} 22. Nxg2 {[%emt 0:00:01]} Qe4 {[%emt 0:00:47]} 23. e3 {[%emt 0:02:30]} Nd5 {[%emt 0:02:09]} 24. Qc6 {[%emt 0:07:59]} Qf5 {[%emt 0:04:20]} 25. a3 {[%emt 0:03:07]} h6 {[%emt 0:01:44]} 26. Nf4 {[%emt 0:02:12]} Nxf4 {[%emt 0:08:51]} 27. exf4 {[%emt 0:00:07]} Qh3 {[%emt 0:06:44]} 28. Qxc7 {[%emt 0:03:31]} Rd5 {[%emt 0:00:18]} 29. Rc5 {[%emt 0:01:42]} Rad8 {[%emt 0:00:20]} 30. Rxd5 {[%emt 0:00:34]} Rxd5 {[%emt 0:00:01]} 31. Qc8+ {[%emt 0:01:08]} Kh7 {[%emt 0:00:09]} 32. Qc2+ {[%emt 0:00:04]} g6 {[%emt 0:00:11]} 33. Qe4 {[%emt 0:00:35]} Kg7 {[%emt 0:02:03]} 34. Rc1 {[%emt 0:00:41]} Qh5 {[%emt 0:00:01]} 35. Kg2 {[%emt 0:00:49]} a5 {[%emt 0:01:37]} 36. Rc7 {[%emt 0:01:19]} a4 {[%emt 0:04:08]} 37. Qxe6 {[%emt 0:01:10]} Qf5 {[%emt 0:04:02]} 38. Qxf5 {[%emt 0:01:37]} gxf5 {[%emt 0:00:01]} 39. Rb7 {[%emt 0:04:21]} Kg6 {[%emt 0:00:25]} 40. Kf3 {[%emt 0:00:06]} Rxd4 {[%emt 0:00:57]} 41. Rxb5 {[%emt 0:00:14]} Rd2 {[%emt 0:00:01]} 42. Rb4 {[%emt 0:01:33]} Rc2 {[%emt 0:00:19]} 43. Kg2 {[%emt 0:00:30]} Rd2 {[%emt 0:00:10]} 44. Rb6+ {[%emt 0:00:41]} f6 {[%emt 0:00:07]} 45. Rb4 {[%emt 0:00:03]} Rc2 {[%emt 0:00:12]} 46. Rxa4 {[%emt 0:00:14]} Rxb2 {[%emt 0:00:03]} 47. Ra8 {[%emt 0:00:13]} Ra2 {[%emt 0:00:11]} 48. a4 {[%emt 0:00:04]} Ra3 {[%emt 0:00:37]} 49. a5 {[%emt 0:00:03]} Kh7 {[%emt 0:00:59]} 50. a6 {[%emt 0:00:08]} Kg7 {[%emt 0:00:08]} 51. f3 {[%emt 0:02:26]} Ra2+ {[%emt 0:00:14]} 52. Kh3 {[%emt 0:00:24]} Ra3 {[%emt 0:01:36]} 53. Kh4 {[%emt 0:00:28]} Kg6 {[%emt 0:01:02]} 54. h3 {[%emt 0:01:00]} Ra4 {[%emt 0:01:08]} 55. g4 {[%emt 0:00:13]} Ra1 {[%emt 0:00:09]} 56. Kg3 {[%emt 0:00:48]} Ra2 {[%emt 0:00:20]} 57. h4 {[%emt 0:00:24]} Ra4 {[%emt 0:05:35]} 58. h5+ {[%emt 0:01:01]} Kg7 {[%emt 0:00:01]} 59. Ra7+ {[%emt 0:00:12]} Kg8 {[%emt 0:00:01]} 60. Kf2 {[%emt 0:00:37]} fxg4 {[%emt 0:00:38]} 61. fxg4 {[%emt 0:00:06]} Rxf4+ {[%emt 0:00:03]} 62. Ke3 {[%emt 0:00:07]} Ra4 {[%emt 0:00:55]} 63. Kd3 {[%emt 0:00:01]} Kh8 {[%emt 0:02:12]} 64. Kc3 {[%emt 0:00:06]} Kg8 {[%emt 0:00:05]} 65. Kb3 {[%emt 0:00:04]} Ra1 {[%emt 0:00:02]} 66. Kc4 {[%emt 0:00:08]} Ra5 {[%emt 0:00:17]} 67. Kb4 {[%emt 0:00:04]} Ra1 {[%emt 0:00:18]} 68. Kc5 {[%emt 0:00:41]} Ra5+ {[%emt 0:00:37]} 69. Kb6 {[%emt 0:00:12]} Ra4 {[%emt 0:00:32]} 70. Rb7 {[%emt 0:00:18]} Rb4+ {[%emt 0:01:42]} 71. Ka5 {[%emt 0:00:10]} 1-0

[Event "CAT-chT Honor Division 2019"]
[Site "Catalonia"]
[Date "2019.02.02"]
[Round "3"]
[White "Castellet Giralt, Gabriel"]
[Black "Campins Machado, Francesc"]
[Result "1-0"]
[ECO "E00"]
[WhiteElo "2217"]
[BlackElo "2109"]
[Annotator "NA RC"]
[PlyCount "169"]
[EventDate "2019.01.16"]
[EventType "team-tourn"]
[EventCountry "ESP"]
[SourceTitle "playchess.com"]
[Source "ChessBase"]
[SourceQuality "1"]
[WhiteTeam "Cerdanyola"]
[BlackTeam "Sant Josep Badalona"]
[TimeControl "5400+30"]

1. d4 {[%emt 0:00:16]} Nf6 {[%emt 0:00:00]} 2. c4 {[%emt 0:00:10]} e6 {[%emt 0:00:00]} 3. Nc3 {[%emt 0:00:08]} Bb4 {[%emt 0:00:04]} 4. e3 {[%emt 0:00:27]} O-O {[%emt 0:01:04]} 5. Nge2 {[%emt 0:00:13]} b6 {[%emt 0:01:23]} 6. a3 {[%emt 0:00:29]} Bxc3+ {[%emt 0:05:14]} 7. Nxc3 {[%emt 0:00:02]} Bb7 {[%emt 0:00:12]} 8. Bd3 {[%emt 0:05:14]} d6 {[%emt 0:04:40]} 9. O-O {[%emt 0:01:44]} c5 {[%emt 0:01:11]} 10. d5 {[%emt 0:04:32]} a6 {[%emt 0:09:19]} 11. a4 {[%emt 0:01:57]} Nbd7 12. f4 {[%emt 0:03:37]} exd5 {[%emt 0:02:13]} 13. cxd5 {[%emt 0:00:07]} Re8 {[%emt 0:00:59]} 14. e4 {[%emt 0:00:34]} c4 {[%emt 0:09:48]} 15. Bc2 {[%emt 0:00:06]} Qc7 {[%emt 0:05:24]} 16. Be3 {[%emt 0:02:19]} Rad8 {[%emt 0:04:30]} 17. Qf3 {[%emt 0:00:58]} Nc5 {[%emt 0:03:15]} 18. Bd4 {[%emt 0:05:56]} Qe7 {[%emt 0:13:38]} 19. Rae1 h6 {[%emt 0:05:56]} 20. Qg3 {[%emt 0:07:05]} Nh5 {[%emt 0:08:16]} 21. Qh3 {[%emt 0:02:13]} Nf6 22. Qg3 {[%emt 0:11:42]} Nh5 {[%emt 0:01:35]} 23. Qf3 {[%emt 0:01:28]} Nf6 {[%emt 0:00:06]} 24. Re3 Bc8 {[%emt 0:11:19]} 25. h3 {[%emt 0:03:08]} Bb7 {[%emt 0:00:15]} 26. Rfe1 {[%emt 0:02:23]} Ba8 {[%emt 0:04:19]} 27. Qe2 {[%emt 0:03:02]} Rc8 28. Qf3 {[%emt 0:10:55]} Qd8 {[%emt 0:06:21]} 29. Rf1 {[%emt 0:00:43]} Qe7 30. Qd1 {[%emt 0:06:31]} Rcd8 {[%emt 0:02:31]} 31. Rg3 {[%emt 0:02:02]} Ncd7 {[%emt 0:01:13]} 32. Qf3 {[%emt 0:01:35]} Nc5 {[%emt 0:00:35]} 33. e5 {[%emt 0:06:29]} dxe5 {[%emt 0:00:28]} 34. fxe5 {[%emt 0:00:06]} Nxd5 {[%emt 0:00:32]} 35. Qf5 {[%emt 0:01:59]} Nd3 {[%emt 0:00:29]} 36. Bxd3 {[%emt 0:01:44]} cxd3 {[%emt 0:00:02]} 37. Ne4 {[%emt 0:01:37]} Qe6 {[%emt 0:00:55]} 38. Qf2 {[%emt 0:01:23]} Kf8 {[%emt 0:00:42]} 39. Nd6 {[%emt 0:00:37]} Re7 {[%emt 0:00:25]} 40. Rf3 {[%emt 0:01:07]} Rdd7 {[%emt 0:00:25]} 41. Qh4 {[%emt 0:00:27]} d2 42. Qf2 {[%emt 0:03:21]} Nb4 {[%emt 0:01:06]} 43. Rc3 {[%emt 0:00:06]} Nc6 {[%emt 0:00:26]} 44. Qxd2 {[%emt 0:00:18]} Qd5 {[%emt 0:00:39]} 45. Qf4 {[%emt 0:01:43]} Kg8 {[%emt 0:00:26]} 46. Nf5 {[%emt 0:02:31]} Nxd4 {[%emt 0:00:30]} 47. Nxe7+ {[%emt 0:01:12]} Rxe7 {[%emt 0:00:08]} 48. Qg4 {[%emt 0:00:47]} Bc6 {[%emt 0:00:35]} 49. Rd1 {[%emt 0:00:50]} Rd7 {[%emt 0:00:50]} 50. Rcd3 {[%emt 0:00:10]} Qxe5 {[%emt 0:00:24]} 51. Rxd4 {[%emt 0:00:18]} Qe3+ {[%emt 0:00:18]} 52. Kh1 {[%emt 0:00:19]} Rxd4 {[%emt 0:00:25]} 53. Rxd4 Qe1+ {[%emt 0:00:53]} 54. Kh2 {[%emt 0:00:21]} Qe5+ {[%emt 0:00:31]} 55. Qf4 {[%emt 0:00:08]} Qxf4+ {[%emt 0:00:27]} 56. Rxf4 {[%emt 0:00:02]} Kf8 {[%emt 0:00:13]} 57. Rc4 {[%emt 0:00:45]} Bd7 {[%emt 0:00:21]} 58. Rb4 {[%emt 0:00:27]} b5 {[%emt 0:00:17]} 59. a5 {[%emt 0:00:01]} Ke7 {[%emt 0:00:09]} 60. Rd4 {[%emt 0:00:11]} Bc6 {[%emt 0:00:12]} 61. Kg3 {[%emt 0:01:30]} g6 {[%emt 0:00:24]} 62. Kf2 {[%emt 0:00:05]} h5 {[%emt 0:00:55]} 63. g3 {[%emt 0:00:07]} Bb7 {[%emt 0:00:49]} 64. Ke3 {[%emt 0:00:08]} Bg2 {[%emt 0:00:25]} 65. h4 {[%emt 0:00:05]} Bc6 {[%emt 0:00:12]} 66. b4 {[%emt 0:00:08]} Bb7 {[%emt 0:00:14]} 67. Rd2 {[%emt 0:00:14]} Bc6 {[%emt 0:00:54]} 68. Kf4 {[%emt 0:00:36]} f6 {[%emt 0:00:56]} 69. Rd1 {[%emt 0:00:23]} Bd7 {[%emt 0:00:34]} 70. Ke4 {[%emt 0:00:32]} Bc6+ {[%emt 0:00:13]} 71. Kd4 {[%emt 0:00:18]} Kd6 {[%emt 0:00:01]} 72. Rf1 {[%emt 0:00:15]} f5 {[%emt 0:00:31]} 73. Rc1 {[%emt 0:00:20]} Bd7 {[%emt 0:01:40]} 74. Rc5 {[%emt 0:00:14]} Be6 {[%emt 0:00:27]} 75. Re5 {[%emt 0:00:18]} Bf7 {[%emt 0:00:23]} 76. Re1 {[%emt 0:00:30]} Be6 {[%emt 0:00:34]} 77. Rc1 {[%emt 0:00:50]} Bd7 {[%emt 0:00:37]} 78. Rc2 {[%emt 0:00:29]} Be6 {[%emt 0:00:16]} 79. Rc5 {[%emt 0:00:13]} Bd7 {[%emt 0:00:46]} 80. Rd5+ {[%emt 0:00:11]} Kc6 {[%emt 0:00:30]} 81. Ke5 {[%emt 0:00:10]} Be8 {[%emt 0:00:24]} 82. Rc5+ {[%emt 0:00:05]} Kd7 {[%emt 0:00:15]} 83. Kf6 {[%emt 0:00:46]} Kd8 {[%emt 0:00:34]} 84. Rd5+ {[%emt 0:00:28]} Kc7 {[%emt 0:00:13]} 85. Re5 {[%emt 0:00:06]} 1-0

[Event "CAT-chT Honor Division 2019"]
[Site "Catalonia"]
[Date "2019.02.02"]
[Round "3"]
[White "Campos Cayuelas, Adria"]
[Black "Garcia Marin, Guillem"]
[Result "0-1"]
[ECO "C43"]
[WhiteElo "2165"]
[BlackElo "2067"]
[Annotator "NA RC"]
[PlyCount "60"]
[EventDate "2019.01.16"]
[EventType "team-tourn"]
[EventCountry "ESP"]
[SourceTitle "playchess.com"]
[Source "ChessBase"]
[SourceQuality "1"]
[WhiteTeam "Colon Sabadell"]
[BlackTeam "Mollet"]
[TimeControl "5400+30"]

1. e4 e5 2. Nf3 Nf6 3. d4 Nxe4 4. Bd3 d5 5. Nxe5 Nd7 6. Nxd7 Bxd7 7. O-O Bd6 8. c4 c6 9. Nc3 Nxc3 10. bxc3 O-O 11. cxd5 cxd5 12. Qh5 g6 13. Qxd5 Qc7 14. Bd2 Bxh2+ 15. Kh1 Bd6 16. Qg5 Rfe8 17. Rfe1 Be6 18. Rab1 Bxa2 19. Rxe8+ Rxe8 20. Qb5 Qe7 21. Bg5 Qe6 22. Ra1 a6 23. Qb2 Bd5 24. f3 b5 25. Kg1 Bc7 26. Qa3 Bg3 27. Qc5 Bxf3 28. c4 Be2 29. d5 Qe5 30. Bxe2 Qxa1+ 0-1

[Event "CAT-chT Honor Division 2019"]
[Site "Catalonia"]
[Date "2019.02.02"]
[Round "3"]
[White "Bals Hernandez, Jordi"]
[Black "Ayas Fernandez, Antonio"]
[Result "0-1"]
[ECO "E49"]
[WhiteElo "2139"]
[BlackElo "2253"]
[Annotator "NA RC"]
[PlyCount "50"]
[EventDate "2019.01.16"]
[EventType "team-tourn"]
[EventCountry "ESP"]
[SourceTitle "playchess.com"]
[Source "ChessBase"]
[SourceQuality "1"]
[WhiteTeam "Mollet"]
[BlackTeam "Colon Sabadell"]
[TimeControl "5400+30"]

1. d4 Nf6 2. c4 e6 3. Nc3 Bb4 4. f3 d5 5. a3 Bxc3+ 6. bxc3 c5 7. cxd5 exd5 8. e3 O-O 9. Bd3 Nc6 10. Ne2 Re8 11. O-O b6 12. Nf4 c4 13. Bc2 Na5 14. Rb1 Bb7 15. g4 h6 16. h4 Rc8 17. Qe1 g6 18. h5 g5 19. Ne2 Rc7 20. Ng3 Bc8 21. a4 Rce7 22. Qf2 Nb3 23. Bxb3 cxb3 24. Rxb3 Qc7 25. Qe2 Qxg3+ 0-1